bitfinex-derivatives/quotes_SOLF0:USTF0_20250529
["timestamp","ask_amount","ask_price","bid_price","bid_amount"]
[1748538876427,0.0444011,168.68,168.64,0.03810505]
[1748538877230,31.1,168.75,168.64,41.17033465]
[1748538877432,5.9253,168.74,168.71,5.926]
[1748538877629,5.9253,168.74,168.64,41.1322296]
[1748538877932,31.1,168.76,168.64,41.1322296]
[1748538878126,0.03875698,168.72,168.68,0.03911884]
[1748538878426,0.03875698,168.72,168.68,31.13911884]
[1748538878627,0.03875698,168.72,168.69,4.1649]
[1748538879231,0.03875698,168.72,168.71,5.9262]
[1748538882131,0.03875698,168.72,168.7,5.9265]
[1748538883932,0.03875698,168.72,168.71,5.9262]
[1748538884231,543.1,168.79,168.69,4.1649]
[1748538884434,543.1,168.79,168.73,5.9253]
[1748538885233,0.04543661,168.78,168.74,0.04199196]
[1748538885641,5.9248,168.76,168.74,0.04199196]
[1748538885837,0.04543661,168.78,168.74,0.04199196]
[1748538886538,5.9248,168.75,168.74,0.04199196]
[1748538888443,5.9267,168.7,168.65,33.0199]
[1748538889238,5.96643573,168.69,168.66,0.03983155]
[1748538889836,5.9273,168.68,168.66,0.03983155]
[1748538890037,0.03943573,168.69,168.66,0.03983155]
[1748538890947,5.9273,168.68,168.66,0.03983155]
[1748538891242,0.03943573,168.69,168.66,0.03983155]
[1748538891949,5.9276,168.67,168.66,0.03983155]
[1748538894152,37.0276,168.67,168.66,0.03983155]
[1748538897641,5.9276,168.67,168.66,0.03983155]
[1748538898350,37.0273,168.68,168.66,0.03983155]
[1748538898553,31.1,168.68,168.66,0.03983155]
[1748538899145,37.0275,168.68,168.66,0.03983155]
[1748538900351,5.9276,168.67,168.66,0.03983155]
[1748538900741,0.03943573,168.69,168.66,0.03983155]
[1748538901450,5.9276,168.67,168.66,0.03983155]
[1748538904454,5.9274,168.68,168.66,0.03983155]
[1748538906258,5.96643573,168.69,168.66,0.03983155]
[1748538906556,0.03943573,168.69,168.66,0.03983155]
[1748538907456,5.96643573,168.69,168.66,0.03983155]
[1748538907655,5.96643573,168.69,168.66,5.96763155]
[1748538907850,5.9274,168.68,168.66,0.03983155]
[1748538908252,0.03943573,168.69,168.66,0.03983155]
[1748538908553,5.9276,168.67,168.66,0.03983155]
[1748538910354,5.9295,168.62,168.59,2.0361]
[1748538910849,31.06,168.65,168.59,2.0361]
[1748538911456,0.04180724,168.64,168.6,0.0378183]
[1748538911961,5.9296,168.62,168.6,0.0378183]
[1748538912155,0.04180724,168.64,168.6,0.0378183]
[1748538912356,5.9297,168.61,168.6,0.0378183]
[1748538913363,0.04180724,168.64,168.6,0.0378183]
[1748538913756,5.9293,168.63,168.6,0.0378183]
[1748538914154,0.04180724,168.64,168.6,0.0378183]
[1748538915158,0.04180724,168.64,168.63,5.929]
[1748538915865,31.06,168.71,168.61,33.088]
[1748538916761,0.03817396,168.68,168.64,0.0414973]
[1748538917363,5.9283,168.65,168.64,0.0414973]
[1748538917559,0.03817396,168.68,168.64,0.0414973]
[1748538917865,5.9277,168.67,168.64,5.9700973]
[1748538918660,0.03817396,168.68,168.64,0.0414973]
[1748538920163,5.96557396,168.68,168.64,5.9698973]
[1748538920366,5.96557396,168.68,168.64,0.0414973]
[1748538920865,0.03817396,168.68,168.64,0.0414973]
[1748538921064,2.0974,168.76,168.65,31.06]
[1748538921269,5.9255,168.73,168.66,1.9814]
[1748538921462,236.30303703,168.77,168.66,1.9814]
[1748538921965,236.30303703,168.77,168.7,5.9264]
[1748538922159,0.04397079,168.73,168.7,5.96932941]
[1748538922360,5.96967079,168.73,168.7,0.04292941]
[1748538922766,0.04397079,168.73,168.7,0.04292941]
[1748538922968,0.04397079,168.73,168.7,5.96932941]
[1748538923767,5.96967079,168.73,168.7,5.96932941]
[1748538924269,0.04397079,168.73,168.7,0.04292941]
[1748538926172,5.9262,168.72,168.7,0.04292941]
[1748538926375,0.04397079,168.73,168.7,0.04292941]
[1748538926968,0.04397079,168.73,168.71,5.9262]
[1748538927368,0.04397079,168.73,168.7,0.04292941]
[1748538927969,0.04397079,168.73,168.72,5.9259]
[1748538928764,31.06,168.8,168.7,10.07515901]
[1748538929277,5.924,168.78,168.74,5.9249]
[1748538929474,31.06,168.8,168.72,31.06]
[1748538929872,31.06,168.8,168.74,0.03754963]
[1748538929873,0.04241772,168.78,168.74,0.03754963]
[1748538930273,5.9242,168.77,168.74,0.03754963]
[1748538930679,0.04241772,168.78,168.74,0.03754963]
[1748538931475,5.9248,168.75,168.74,0.03754963]
[1748538932673,5.9271,168.69,168.66,33.0214]
[1748538932872,5.9271,168.69,168.66,38.9493]
[1748538933074,31.04,168.76,168.66,38.9493]
[1748538933273,5.9268,168.7,168.66,38.9493]
[1748538933673,0.03757358,168.7,168.66,33.05959361]
[1748538934280,0.03757358,168.7,168.66,0.03819361]
[1748538935280,5.9275,168.68,168.66,0.03819361]
[1748538935477,0.03757358,168.7,168.66,0.03819361]
[1748538935978,0.03757358,168.7,168.69,5.9269]
[1748538936678,0.03757358,168.7,168.67,33.0423]
[1748538937268,5.96447358,168.7,168.67,33.0423]
[1748538937472,0.03757358,168.7,168.66,0.03819361]
[1748538937772,5.9271,168.69,168.66,0.03819361]
[1748538938580,5.9273,168.68,168.66,0.03819361]
[1748538938780,0.03757358,168.7,168.66,0.03819361]
[1748538939570,0.03757358,168.7,168.67,5.9274]
[1748538939771,0.03757358,168.7,168.66,0.03819361]
[1748538939975,0.03757358,168.7,168.68,5.927]
[1748538940981,0.03757358,168.7,168.67,5.9275]
[1748538941471,0.03757358,168.7,168.68,5.9272]
[1748538942074,0.03757358,168.7,168.69,5.9269]
[1748538942281,0.03757358,168.7,168.66,0.03819361]
[1748538942678,0.03757358,168.7,168.67,5.9275]
[1748538943088,5.96437358,168.7,168.67,5.9275]
[1748538943482,0.03757358,168.7,168.66,5.96599361]
[1748538943682,0.03757358,168.7,168.66,0.03819361]
[1748538944580,5.9276,168.67,168.66,0.03819361]
[1748538944784,36.9276,168.67,168.66,9.361e-05]
[1748538944974,31.0,168.67,168.58,31.0]
[1748538945688,31.0,168.67,168.59,5.9304]
[1748538945888,0.04454584,168.65,168.61,0.04006508]
[1748538946191,5.9294,168.62,168.61,0.04006508]
[1748538948090,31.0,168.63,168.61,0.04006508]
[1748538948687,0.04454584,168.65,168.61,0.04006508]
[1748538949189,0.04454584,168.65,168.63,5.9288]
[1748538949390,0.04454584,168.65,168.61,0.04006508]
[1748538950791,0.04454584,168.65,168.63,5.9288]
[1748538951092,0.04454584,168.65,168.61,0.04006508]
[1748538951386,0.04454584,168.65,168.62,5.9292]
[1748538951885,0.04454584,168.65,168.61,0.04006508]
[1748538952081,0.04454584,168.65,168.61,4.13256508]
[1748538952786,0.04454584,168.65,168.64,5.9287]
[1748538955892,0.04454584,168.65,168.61,4.13256508]
[1748538957190,0.04454584,168.65,168.64,5.9287]
[1748538957489,31.0,168.72,168.61,14.16479468]
[1748538957692,32.9832,168.75,168.64,41.0322296]
[1748538957993,31.0,168.75,168.65,1.9662]
[1748538958385,0.03755037,168.72,168.68,0.04005633]
[1748538958584,0.03755037,168.72,168.68,31.04005633]
[1748538959594,5.9265,168.71,168.68,36.96725633]
[1748538960394,0.03755037,168.72,168.68,0.04005633]
[1748538961000,5.9269,168.69,168.68,0.04005633]
[1748538961398,5.9269,168.69,168.61,4.0925]
[1748538961399,31.0,168.7,168.61,2.0363]
[1748538962098,5.9273,168.68,168.64,5.9285]
[1748538962293,5.96672202,168.68,168.61,2.0363]
[1748538962499,0.03942202,168.68,168.64,0.04146586]
[1748538963201,0.03942202,168.68,168.67,5.9276]
[1748538963705,32.9022,168.76,168.65,10.0322296]
[1748538963904,32.9022,168.76,168.67,31.0]
[1748538964103,5.9259,168.72,168.67,31.0]
[1748538964306,5.9259,168.72,168.69,5.9266]
[1748538964606,32.9022,168.76,168.67,31.0]
[1748538964794,0.03824172,168.73,168.7,0.04354579]
[1748538965301,5.9262,168.71,168.7,0.04354579]
[1748538967306,5.926,168.72,168.7,0.04354579]
[1748538967507,0.03824172,168.73,168.7,0.04354579]
[1748538967904,0.03824172,168.73,168.71,5.926]
[1748538968910,0.03824172,168.73,168.7,0.04354579]
[1748538970008,5.9262,168.71,168.7,0.04354579]
[1748538971307,0.03824172,168.73,168.7,0.04354579]
[1748538971814,5.9262,168.71,168.7,0.04354579]
[1748538973710,5.926,168.72,168.7,0.04354579]
[1748538973914,0.03824172,168.73,168.7,0.04354579]
[1748538974914,0.03824172,168.73,168.72,5.9259]
[1748538975210,0.03824172,168.73,168.7,0.04354579]
[1748538975605,0.03824172,168.73,168.7,5.96994579]
[1748538976115,0.03824172,168.73,168.7,0.04354579]
[1748538976617,0.03824172,168.73,168.72,5.9259]
[1748538977613,512.12,168.85,168.77,5.9241]
[1748538977614,30.96,168.82,168.77,5.9241]
[1748538978006,5.9233,168.8,168.77,5.9241]
[1748538978208,5.9233,168.8,168.72,30.96]
[1748538978411,512.12,168.85,168.72,30.96]
[1748538978412,543.08,168.85,168.72,30.96]
[1748538978608,0.04428486,168.8,168.77,0.04214198]
[1748538978812,0.04428486,168.8,168.77,5.96614198]
[1748538979013,0.04428486,168.8,168.77,0.04214198]
[1748538979816,5.9238,168.79,168.77,0.04214198]
[1748538980016,0.04428486,168.8,168.77,0.04214198]
[1748538980417,5.9238,168.78,168.77,0.04214198]
[1748538986221,0.04428486,168.8,168.7,30.96]
[1748538986222,5.9262,168.71,168.7,30.96]
[1748538986530,30.96,168.77,168.69,1.9863]
[1748538986731,6.0501,168.79,168.69,1.9863]
[1748538986732,5.926,168.72,168.69,1.9863]
[1748538987231,5.96703078,168.72,168.69,2.03143555]
[1748538987631,0.04103078,168.72,168.69,7.95833555]
[1748538988230,0.04103078,168.72,168.7,5.9265]
[1748538988828,0.04103078,168.72,168.69,7.95823555]
[1748538989432,0.04103078,168.72,168.69,2.03143555]
[1748538989626,30.96,168.79,168.69,2.03143555]
[1748538989827,6.0837,168.84,168.74,5.9249]
[1748538990026,30.96,168.82,168.74,5.9249]
[1748538990226,5.9241,168.78,168.74,5.9249]
[1748538990428,30.96,168.82,168.73,5.9253]
[1748538990726,5.9241,168.77,168.76,0.04109299]
[1748538991233,5.9239,168.78,168.76,0.04109299]
[1748538991533,0.04438195,168.79,168.76,0.04109299]
[1748538993233,5.9241,168.77,168.76,0.04109299]
[1748538995626,5.9259,168.72,168.69,38.8731]
[1748538995830,30.96,168.78,168.69,32.9463]
[1748538996125,5.9255,168.73,168.7,5.9263]
[1748538996328,5.9255,168.73,168.69,32.9463]
[1748538996731,5.9259,168.72,168.69,38.91574273]
[1748538996931,0.03992475,168.73,168.69,38.91574273]
[1748538997530,0.03992475,168.73,168.69,32.98904273]
[1748538997727,30.94,168.81,168.69,32.98904273]
[1748538997926,5.9236,168.79,168.69,32.9463]
[1748538998129,33.0442,168.84,168.71,10.02237096]
[1748538998331,33.0442,168.84,168.72,1.9789]
[1748538998533,5.9229,168.81,168.73,30.94]
[1748538998827,0.04103128,168.79,168.75,0.04369895]
[1748538999231,0.04103128,168.79,168.78,5.9237]
[1748539001740,0.04103128,168.79,168.77,5.924]
[1748539003938,0.04103128,168.79,168.76,5.9243]
[1748539004735,0.04103128,168.79,168.75,0.04369895]
[1748539005140,5.9244,168.77,168.75,0.04369895]
[1748539005841,0.04103128,168.79,168.75,0.04369895]
[1748539006436,5.96453128,168.79,168.75,5.96829895]
[1748539006642,5.96453128,168.79,168.75,0.04369895]
[1748539007040,5.9238,168.78,168.75,5.96829895]
[1748539007239,0.04103128,168.79,168.75,0.04369895]
[1748539007634,5.96463128,168.79,168.76,5.9242]
[1748539007838,5.96463128,168.79,168.75,0.04369895]
[1748539008035,0.04103128,168.79,168.76,5.9241]
[1748539008235,0.04103128,168.79,168.75,0.04369895]
[1748539008741,0.04103128,168.79,168.77,5.924]
[1748539010844,0.04103128,168.79,168.78,5.9237]
[1748539011244,0.04103128,168.79,168.75,0.04369895]
[1748539011439,0.04103128,168.79,168.76,5.9244]
[1748539011638,0.04103128,168.79,168.75,0.04369895]
[1748539012238,5.96443128,168.79,168.76,5.9242]
[1748539013249,5.9237,168.78,168.76,5.9242]
[1748539013649,0.04103128,168.79,168.75,0.04369895]
[1748539014549,5.9238,168.78,168.76,5.9242]
[1748539014750,0.04103128,168.79,168.75,0.04369895]
[1748539015048,0.04103128,168.79,168.77,5.9239]
[1748539015244,0.04103128,168.79,168.75,0.04369895]
[1748539015648,0.04103128,168.79,168.78,5.9237]
[1748539018351,30.92,168.86,168.77,30.92]
[1748539018951,5.9217,168.84,168.77,30.92]
[1748539019250,5.9217,168.84,168.79,0.04066481]
[1748539019453,5.9217,168.84,168.81,5.9225]
[1748539019758,30.92,168.86,168.79,0.04066481]
[1748539020255,34.8834,168.89,168.79,0.04066481]
[1748539020643,34.8834,168.89,168.81,5.9224]
[1748539020849,34.8834,168.89,168.83,0.04167307]
[1748539021149,5.9216,168.84,168.83,0.04167307]
[1748539024657,5.9216,168.84,168.83,7.307e-05]
[1748539025051,7.8806,168.84,168.83,7.307e-05]
[1748539026554,5.9216,168.84,168.83,7.307e-05]
[1748539028751,5.9238,168.78,168.75,1.9493]
[1748539029055,30.9,168.81,168.73,30.9]
[1748539029252,30.9,168.81,168.71,30.9]
[1748539029455,12.09887096,168.8,168.69,32.9962]
[1748539029860,0.03752572,168.76,168.73,0.04360923]
[1748539030053,30.93752572,168.76,168.73,0.04360923]
[1748539030862,5.9251,168.74,168.73,0.04360923]
[1748539031875,5.927,168.69,168.66,30.9]
[1748539032267,30.9,168.76,168.63,30.9]
[1748539032574,5.9276,168.67,168.63,30.9]
[1748539032964,0.04355935,168.67,168.64,5.9286]
[1748539033364,0.04355935,168.67,168.63,30.94490621]
[1748539033578,0.04355935,168.67,168.63,0.04490621]
[1748539034473,5.9282,168.66,168.63,0.04490621]
[1748539035368,0.04355935,168.67,168.63,0.04490621]
[1748539037769,5.9287,168.64,168.63,0.04490621]
[1748539038080,30.96355935,168.67,168.63,0.04490621]
[1748539038374,36.89125935,168.67,168.63,0.04490621]
[1748539038572,30.96355935,168.67,168.63,0.04490621]
[1748539038973,30.96355935,168.67,168.64,5.9284]
[1748539039367,0.04355935,168.67,168.64,5.9284]
[1748539039570,0.04355935,168.67,168.63,0.04490621]
[1748539040174,5.9285,168.65,168.63,0.04490621]
[1748539041969,5.9287,168.64,168.63,0.04490621]
[1748539042869,5.9299,168.61,168.57,5.9308]
[1748539043567,5.9299,168.61,168.58,5.9307]
[1748539043773,5.9301,168.6,168.58,0.04071198]
[1748539043970,0.04238385,168.61,168.58,0.04071198]
[1748539044768,5.97218385,168.61,168.58,0.04071198]
[1748539044972,0.04238385,168.61,168.58,5.97141198]
[1748539045480,0.04238385,168.61,168.58,0.04071198]
[1748539045868,5.9303,168.6,168.58,0.04071198]
[1748539046381,5.9304,168.59,168.58,0.04071198]
[1748539049476,5.9304,168.59,168.58,1.198e-05]
[1748539050876,10.02237096,168.59,168.49,34.9777]
[1748539051077,30.94,168.58,168.49,34.9777]
[1748539051276,5.932,168.55,168.49,34.9777]
[1748539051477,30.94,168.58,168.49,32.8819]
[1748539051678,10.02237096,168.56,168.44,4.094]
[1748539051869,0.03995063,168.52,168.48,0.04552609]
[1748539052070,5.9338,168.5,168.48,0.04552609]
[1748539052669,5.9339,168.49,168.48,0.04552609]
[1748539053382,5.9333,168.51,168.48,0.04552609]
[1748539053572,0.03995063,168.52,168.48,0.04552609]
[1748539055580,5.9339,168.49,168.48,0.04552609]
[1748539056281,0.03995063,168.52,168.48,0.04552609]
[1748539056679,0.03995063,168.52,168.51,5.9332]
[1748539056983,0.03995063,168.52,168.48,0.04552609]
[1748539057886,0.03995063,168.52,168.51,5.9332]
[1748539059582,0.03995063,168.52,168.5,5.9333]
[1748539059782,0.03995063,168.52,168.49,34.9535]
[1748539061186,0.03995063,168.52,168.5,5.9336]
[1748539061581,0.03995063,168.52,168.49,34.9535]
[1748539061785,0.03995063,168.52,168.51,5.9332]
[1748539061982,30.94,168.56,168.49,37.0605]
[1748539062281,36.8715,168.56,168.53,5.9324]
[1748539062485,201.38926731,168.58,168.49,37.0605]
[1748539062689,5.9302,168.6,168.57,5.9309]
[1748539062987,0.04093679,168.6,168.57,0.04322688]
[1748539063391,0.04093679,168.6,168.58,5.9306]
[1748539063983,5.97103679,168.6,168.58,5.9306]
[1748539064587,0.04093679,168.6,168.57,0.04322688]
[1748539065187,5.9306,168.59,168.57,0.04322688]
[1748539065690,0.04093679,168.6,168.57,0.04322688]
[1748539065892,5.9308,168.58,168.57,0.04322688]
[1748539066490,5.9306,168.59,168.57,0.04322688]
[1748539066793,0.04093679,168.6,168.57,0.04322688]
[1748539067187,0.04093679,168.6,168.57,5.97412688]
[1748539067891,5.9304,168.59,168.57,5.97412688]
[1748539068093,0.04093679,168.6,168.57,0.04322688]
[1748539068577,5.9304,168.59,168.57,0.04322688]
[1748539068781,0.04093679,168.6,168.57,0.04322688]
[1748539069384,5.9308,168.58,168.57,0.04322688]
[1748539069585,0.04093679,168.6,168.57,0.04322688]
[1748539069787,5.9308,168.58,168.57,0.04322688]
[1748539071093,5.9306,168.59,168.57,0.04322688]
[1748539071294,0.04093679,168.6,168.57,0.04322688]
[1748539071788,5.9307,168.59,168.57,0.04322688]
[1748539071988,0.04093679,168.6,168.57,0.04322688]
[1748539072391,0.04093679,168.6,168.59,5.9304]
[1748539072583,30.92,168.65,168.58,2.0182]
[1748539072788,5.929,168.63,168.58,4.117]
[1748539072988,5.929,168.63,168.6,5.9298]
[1748539073594,5.97124789,168.63,168.6,5.9298]
[1748539073894,0.04224789,168.63,168.61,5.9297]
[1748539074089,0.04224789,168.63,168.58,6.1988]
[1748539074787,5.9294,168.62,168.58,12.1294]
[1748539074989,0.04224789,168.63,168.58,6.1988]
[1748539076090,5.93,168.61,168.58,12.1295]
[1748539076486,5.9303,168.6,168.58,6.1988]
[1748539076692,0.04224789,168.63,168.58,6.1988]
[1748539077087,5.9303,168.6,168.58,6.1988]
[1748539078297,5.9303,168.6,168.58,12.1296]
[1748539078595,5.9304,168.59,168.58,6.1988]
[1748539078791,0.04224789,168.63,168.57,0.04322688]
[1748539079589,5.9308,168.58,168.57,0.04322688]
[1748539081100,0.04407082,168.59,168.57,0.04322688]
[1748539081698,0.04407082,168.59,168.57,5.97432688]
[1748539081894,0.04407082,168.59,168.57,0.04322688]
[1748539082095,0.04407082,168.59,168.58,5.9308]
[1748539082395,0.04407082,168.59,168.57,0.04322688]
[1748539082593,0.04407082,168.59,168.58,5.9308]
[1748539083302,5.9295,168.62,168.59,5.9303]
[1748539083501,5.9295,168.62,168.57,0.04322688]
[1748539083502,30.92,168.65,168.57,0.04322688]
[1748539083802,5.9291,168.63,168.6,5.9299]
[1748539084001,30.92,168.65,168.58,4.0361]
[1748539084200,0.03789386,168.63,168.61,5.9295]
[1748539084497,5.9289,168.64,168.6,0.04224721]
[1748539084498,0.04488652,168.64,168.6,0.04224721]
[1748539084901,5.97358652,168.64,168.62,5.9293]
[1748539085093,0.04488652,168.64,168.62,5.9293]
[1748539085298,5.9281,168.66,168.6,0.04224721]
[1748539086093,5.9281,168.66,168.63,5.9288]
[1748539087100,5.9283,168.65,168.62,5.9293]
[1748539087301,5.9283,168.65,168.62,5.96674679]
[1748539087808,5.9283,168.65,168.63,5.9289]
[1748539088104,5.9281,168.66,168.63,5.9289]
[1748539088697,545.3996,168.71,168.63,5.9289]
[1748539088902,545.3996,168.71,168.62,0.03744679]
[1748539089200,5.929,168.63,168.62,0.03744679]
[1748539089801,5.929,168.63,168.62,0.00203466]
[1748539090003,30.92,168.67,168.62,0.00203466]
[1748539090402,5.9279,168.67,168.64,5.9284]
[1748539090598,30.92,168.7,168.62,0.00203466]
[1748539090807,0.03916391,168.67,168.62,0.00203466]
[1748539091608,5.929,168.63,168.62,0.00203466]
[1748539092315,5.9288,168.64,168.62,0.00203466]
[1748539092608,0.03916391,168.67,168.62,0.00203466]
[1748539093305,5.929,168.63,168.62,0.00203466]
[1748539095300,30.9,168.66,168.62,0.00203466]
[1748539096012,5.9287,168.64,168.62,0.00203466]
[1748539096407,30.9,168.66,168.62,0.00203466]
[1748539096601,5.929,168.63,168.62,0.00203466]
[1748539096804,30.9,168.66,168.62,0.00203466]
[1748539097206,5.929,168.63,168.62,0.00203466]
[1748539102308,42.94550471,168.66,168.53,32.953]
[1748539102508,32.9169,168.66,168.53,32.953]
[1748539102714,2.0169,168.66,168.6,5.93]
[1748539102918,30.9,168.65,168.6,5.93]
[1748539103212,0.03787009,168.64,168.61,0.03834102]
[1748539103410,5.9294,168.62,168.61,0.04132533]
[1748539105009,0.03787009,168.64,168.53,32.953]
[1748539105219,10.02860471,168.62,168.53,30.9]
[1748539105714,10.02860471,168.62,168.52,2.1001]
[1748539106113,0.03783496,168.59,168.55,0.0440122]
[1748539106317,30.95783496,168.59,168.55,0.0440122]
[1748539106517,5.9315,168.56,168.55,0.0440122]
[1748539106712,30.95783496,168.59,168.55,0.0440122]
[1748539107219,5.9313,168.57,168.55,0.0440122]
[1748539107408,30.95783496,168.59,168.55,0.0440122]
[1748539108718,5.9308,168.58,168.55,0.0440122]
[1748539109310,30.95783496,168.59,168.55,0.0440122]
[1748539109918,0.03783496,168.59,168.55,0.0440122]
[1748539110320,5.96853496,168.59,168.55,5.9757122]
[1748539110710,5.96853496,168.59,168.55,0.0440122]
[1748539111317,5.9309,168.58,168.55,0.0440122]
[1748539111517,0.03783496,168.59,168.55,0.0440122]
[1748539112215,2.0097,168.69,168.55,0.0440122]
[1748539112418,1.9606,168.74,168.6,10.02860471]
[1748539112731,5.9259,168.72,168.65,5.928]
[1748539113023,1.9606,168.74,168.63,34.4866]
[1748539113321,0.04017828,168.7,168.67,0.04326485]
[1748539113728,5.9272,168.68,168.67,0.04326485]
[1748539114422,5.9272,168.69,168.67,0.04326485]
[1748539114922,0.04017828,168.7,168.67,0.04326485]
[1748539115818,5.927,168.69,168.67,0.04326485]
[1748539118615,5.9272,168.68,168.67,0.04326485]
[1748539118816,0.04017828,168.7,168.43,14.87494684]
[1748539118817,10.02860471,168.69,168.43,14.87494684]
[1748539119017,10.02860471,168.62,168.5,1.9103]
[1748539119222,10.02860471,168.62,168.53,5.9323]
[1748539119223,5.9309,168.58,168.53,5.9323]
[1748539119725,5.9309,168.58,168.52,5.9328]
[1748539119925,0.03953616,168.57,168.54,0.04476639]
[1748539120229,0.0374123,168.57,168.54,0.04307154]
[1748539121129,0.0374123,168.57,168.56,5.9315]
[1748539121630,5.9296,168.62,168.57,5.9308]
[1748539121931,1.9493,168.65,168.57,5.9308]
[1748539122330,5.9296,168.62,168.58,5.9307]
[1748539122631,0.04281471,168.62,168.58,0.03878435]
[1748539123537,5.9298,168.61,168.58,0.03878435]
[1748539123728,0.04281471,168.62,168.58,0.03878435]
[1748539124231,5.97251471,168.62,168.58,5.96958435]
[1748539124432,0.04281471,168.62,168.58,0.03878435]
[1748539125534,0.04281471,168.62,168.59,5.9304]
[1748539125739,0.04281471,168.62,168.58,0.03878435]
[1748539126135,0.04281471,168.62,168.6,5.9299]
[1748539127027,0.04281471,168.62,168.61,5.9297]
[1748539127432,0.04281471,168.62,168.6,5.9299]
[1748539128133,0.04281471,168.62,168.61,5.9297]
[1748539128735,0.04281471,168.62,168.58,0.03878435]
[1748539129238,5.9298,168.61,168.58,0.03878435]
[1748539129636,0.04281471,168.62,168.58,0.03878435]
[1748539130642,5.9304,168.59,168.58,0.03878435]
[1748539130838,5.9304,168.59,168.58,0.00137205]
[1748539131536,1.9987,168.61,168.52,5.9327]
[1748539132145,5.9317,168.56,168.52,5.9327]
[1748539132344,1.9987,168.61,168.5,1.9103]
[1748539132649,5.9318,168.55,168.54,0.04413213]
[1748539137338,5.9318,168.55,168.54,3.213e-05]
[1748539137544,5.9335,168.51,168.47,5.9343]
[1748539138042,16.36439701,168.59,168.46,5.9348]
[1748539138644,0.0453982,168.54,168.51,0.04018741]
[1748539139640,5.9328,168.53,168.51,0.04018741]
[1748539140048,0.0453982,168.54,168.51,0.04018741]
[1748539140246,5.9329,168.52,168.51,0.04018741]
[1748539144651,0.0453982,168.54,168.45,1.9384]
[1748539144845,28.22689701,168.57,168.44,1.9519]
[1748539145052,1.9236,168.6,168.41,3.8587]
[1748539145053,16.36439701,168.53,168.41,3.8587]
[1748539145352,1.962,168.52,168.41,3.8587]
[1748539145851,0.04143829,168.48,168.45,0.03853817]
[1748539146053,0.04143829,168.48,168.21,16.36439701]
[1748539146350,16.36439701,168.45,168.3,3.8841]
[1748539146546,16.36439701,168.47,168.31,1.9359]
[1748539146747,5.9363,168.43,168.38,5.9378]
[1748539146954,16.36439701,168.47,168.31,1.9359]
[1748539147147,0.03898173,168.42,168.31,1.9359]
[1748539147348,1.9538,168.48,168.37,0.04451244]
[1748539147645,1.9538,168.48,168.31,1.9359]
[1748539148150,5.9356,168.45,168.31,1.9359]
[1748539148345,1.9538,168.48,168.31,1.9359]
[1748539148551,0.03961325,168.4,168.36,0.04359216]
[1748539148753,0.04505085,168.4,168.36,0.04227934]
[1748539148951,0.04505085,168.4,168.39,5.9372]
[1748539149247,16.36439701,168.49,168.37,2.1075]
[1748539149441,2.002,168.51,168.42,5.9364]
[1748539150045,5.935,168.47,168.45,0.04360463]
[1748539150250,0.03970163,168.48,168.45,0.04360463]
[1748539150951,5.935,168.46,168.45,0.04360463]
[1748539154445,5.9348,168.47,168.45,0.04360463]
[1748539154647,0.03970163,168.48,168.45,0.04360463]
[1748539155152,5.935,168.46,168.45,0.04360463]
[1748539158046,0.03970163,168.48,168.38,2.0992]
[1748539158355,10.05661072,168.46,168.38,2.0992]
[1748539158555,5.9366,168.42,168.38,2.0992]
[1748539159054,5.9368,168.41,168.38,2.14307252]
[1748539159356,0.041118,168.42,168.38,2.14307252]
[1748539159553,5.977818,168.42,168.38,8.08067252]
[1748539159853,0.041118,168.42,168.38,2.14307252]
[1748539160256,5.9368,168.41,168.38,2.14307252]
[1748539160450,0.041118,168.42,168.38,0.04387252]
[1748539160651,5.9372,168.4,168.38,0.04387252]
[1748539160853,0.041118,168.42,168.38,0.04387252]
[1748539161456,5.9375,168.39,168.38,0.04387252]
[1748539163449,0.041118,168.42,168.38,0.04387252]
[1748539165252,5.9368,168.41,168.38,5.98157252]
[1748539165455,0.041118,168.42,168.38,0.04387252]
[1748539166451,0.041118,168.42,168.27,2.0809]
[1748539166452,17.81,168.38,168.05,17.81]
[1748539166758,17.81,168.38,168.19,10.06704441]
[1748539166759,1.9641,168.37,168.19,10.06704441]
[1748539166953,10.06704441,168.35,168.2,5.9535]
[1748539167153,5.94,168.32,168.2,5.9535]
[1748539167557,0.03956966,168.28,168.24,0.039697]